bitfinex/quotes_BTCUSD_20260104
["timestamp","ask_amount","ask_price","bid_price","bid_amount"]
[1767560020991,0.06574706,91259.0,91254.0,0.0648885]
[1767560021145,0.06567825,91259.0,91254.0,0.0648885]
[1767560021786,0.01088901,91259.0,91254.0,0.0648885]
[1767560021974,0.06567826,91259.0,91254.0,0.0648885]
[1767560022197,0.01095782,91259.0,91255.0,0.0109583]
[1767560022558,0.06574707,91259.0,91254.0,0.0648885]
[1767560023026,0.06074707,91259.0,91254.0,0.0648885]
[1767560023224,0.06074707,91259.0,91254.0,0.01009642]
[1767560023225,0.01095794,91258.0,91254.0,0.01009642]
[1767560024036,0.06574523,91262.0,91258.0,0.000999]
[1767560024532,0.08766435,91264.0,91259.0,0.01095782]
[1767560024736,0.08766435,91264.0,91258.0,0.06574743]
[1767560024886,0.08766435,91264.0,91255.0,0.15803069]
[1767560025088,0.08766435,91264.0,91258.0,0.0547892]
[1767560025511,0.08766435,91264.0,91259.0,0.05478895]
[1767560025732,0.08766435,91264.0,91258.0,0.0547892]
[1767560025927,0.01095734,91263.0,91258.0,0.06574714]
[1767560026158,0.06574415,91263.0,91258.0,0.06574765]
[1767560026393,0.06574418,91263.0,91258.0,0.01095794]
[1767560028600,0.06574522,91262.0,91257.0,0.06574834]
[1767560028802,0.01095746,91262.0,91257.0,0.06574834]
[1767560028999,0.01095758,91261.0,91256.0,0.06574906]
[1767560029182,0.01095758,91261.0,91255.0,0.0657488]
[1767560029183,0.06574564,91261.0,91255.0,0.0657488]
[1767560029387,0.06574564,91261.0,91256.0,0.01095818]
[1767560029615,0.06574564,91261.0,91256.0,0.06574897]
[1767560030165,0.01095794,91258.0,91254.0,0.01095842]
[1767560030393,0.01095806,91257.0,91253.0,0.01095854]
[1767560030708,0.06574811,91258.0,91253.0,0.01095854]
[1767560031510,0.06574666,91260.0,91254.0,0.05479211]
[1767560031711,0.06574592,91261.0,91258.0,0.000999]
[1767560032015,0.01095758,91261.0,91258.0,0.000999]
[1767560032311,0.01095758,91261.0,91257.0,0.01095806]
[1767560033446,0.01095758,91261.0,91256.0,0.01095818]
[1767560033630,0.01095758,91261.0,91256.0,0.06574907]
[1767560033826,0.25202226,91264.0,91261.0,0.000999]
[1767560033827,0.01095734,91263.0,91261.0,0.000999]
[1767560034220,0.01095734,91263.0,91259.0,0.01095782]
[1767560034623,0.06574483,91262.0,91257.0,0.06574822]
[1767560035982,0.01095746,91262.0,91258.0,0.01095794]
[1767560036459,0.01095746,91262.0,91257.0,0.06574822]
[1767560037855,0.0109577,91260.0,91256.0,0.01095818]
[1767560038152,0.06574521,91262.0,91257.0,0.01095806]
[1767560039140,0.06574521,91262.0,91257.0,0.06574823]
[1767560039348,0.01095758,91261.0,91257.0,0.01095806]
[1767560039667,0.06574521,91262.0,91257.0,0.06574816]
[1767560039823,0.06574409,91263.0,91258.0,0.01095794]
[1767560040019,0.01095674,91268.0,91260.0,0.0109577]
[1767560040219,0.0109571,91265.0,91260.0,0.0109577]
[1767560040425,0.0109571,91265.0,91260.0,0.06574607]
[1767560040640,0.06574367,91264.0,91259.0,0.01095782]
[1767560040987,0.06574367,91264.0,91260.0,0.0109577]
[1767560041528,0.06574224,91266.0,91260.0,0.0109577]
[1767560041699,0.05478561,91265.0,91260.0,0.06574619]
[1767560041878,0.06574224,91266.0,91261.0,0.01095758]
[1767560043017,0.06574224,91266.0,91261.0,0.06574547]
[1767560043416,0.08766131,91267.0,91247.0,0.05479593]
[1767560043417,0.0494155,91259.0,91247.0,0.05479593]
[1767560043629,0.06575206,91252.0,91244.0,0.06575657]
[1767560043843,0.05479452,91250.0,91243.0,0.03287974]
[1767560044051,0.05479452,91250.0,91244.0,0.01095962]
[1767560044265,0.05479452,91250.0,91243.0,0.02192]
[1767560044401,0.05479452,91250.0,91243.0,0.08767831]
[1767560044927,0.05479452,91250.0,91243.0,0.02192]
[1767560047878,0.05479392,91251.0,91243.0,0.02192]
[1767560048252,0.05479452,91250.0,91243.0,0.03287974]
[1767560048460,0.05479452,91250.0,91244.0,0.01095962]
[1767560048677,0.05479452,91250.0,91243.0,0.08767843]
[1767560048864,0.05479452,91250.0,91244.0,0.01095962]
[1767560049267,0.05479452,91250.0,91243.0,0.08767843]
[1767560049466,0.05479452,91250.0,91244.0,0.01095962]
[1767560051956,0.05479452,91250.0,91244.0,0.06575762]
[1767560052186,0.05479452,91250.0,91245.0,0.0109595]
[1767560052446,0.05479452,91250.0,91244.0,0.01095962]
[1767560053626,0.05479452,91250.0,91245.0,0.0109595]
[1767560053786,0.05479452,91250.0,91244.0,0.06575759]
[1767560054394,0.06574986,91255.0,91248.0,0.06575482]
[1767560054598,0.06575105,91254.0,91249.0,0.01106688]
[1767560054804,0.06575105,91254.0,91250.0,0.0109589]
[1767560055006,0.01095842,91254.0,91250.0,0.0109589]
[1767560055212,0.06574994,91255.0,91250.0,0.0109589]
[1767560055813,0.06379134,91255.0,91250.0,0.0109589]
[1767560056018,0.01095842,91254.0,91249.0,0.06586192]
[1767560056959,0.01095842,91254.0,91250.0,0.0109589]
[1767560059222,0.06575054,91254.0,91249.0,0.06586192]
[1767560059422,0.06575054,91254.0,91249.0,0.01106688]
[1767560059646,0.01095854,91253.0,91249.0,0.00010786]
[1767560060051,0.06575054,91254.0,91249.0,0.01106688]
[1767560060780,0.05275054,91254.0,91249.0,0.01106688]
[1767560061141,0.01095866,91252.0,91249.0,0.00010786]
[1767560062041,0.01095866,91252.0,91245.0,0.16847863]
[1767560062382,0.01095866,91252.0,91248.0,0.01095914]
[1767560062800,0.01095866,91252.0,91247.0,0.06575511]
[1767560063145,0.065752,91252.0,91247.0,0.06575511]
[1767560063346,0.01095878,91251.0,91246.0,0.05479582]
[1767560063549,0.06575279,91251.0,91246.0,0.05479582]
[1767560064234,0.06575279,91251.0,91246.0,0.0657552]
[1767560064596,0.0109589,91250.0,91245.0,0.0109595]
[1767560064933,0.0109589,91250.0,91244.0,0.05479755]
[1767560064934,0.0657542,91249.0,91244.0,0.01095962]
[1767560065101,0.0109589,91250.0,91245.0,0.0109595]
[1767560065521,0.06575326,91251.0,91246.0,0.0657563]
[1767560068632,0.06575326,91251.0,91246.0,0.01095938]
[1767560071195,0.06575357,91250.0,91245.0,0.06575656]
[1767560072023,0.06570861,91250.0,91245.0,0.06575656]
[1767560073483,0.03970861,91250.0,91245.0,0.06575656]
[1767560074238,0.06575209,91252.0,91247.0,0.01095926]
[1767560074643,0.01095878,91251.0,91247.0,0.01095926]
[1767560074849,0.06581514,91252.0,91247.0,0.01095926]
[1767560075305,0.06572522,91252.0,91247.0,0.01095926]
[1767560075705,0.01093179,91252.0,91248.0,0.01095914]
[1767560075971,6.305e-05,91252.0,91248.0,0.01095914]
[1767560076201,6.305e-05,91252.0,91249.0,0.01095902]
[1767560076404,6.305e-05,91252.0,91248.0,0.06575476]
[1767560078316,0.05479016,91258.0,91249.0,0.2301395]
[1767560078529,0.0657481,91258.0,91253.0,0.01095854]
[1767560079285,0.01095806,91257.0,91252.0,0.06575151]
[1767560080273,0.06574811,91259.0,91254.0,0.05479207]
[1767560080423,0.01095794,91258.0,91253.0,0.01095854]
[1767560081923,0.06574791,91258.0,91253.0,0.01095854]
[1767560082066,0.06574811,91259.0,91254.0,0.01095842]
[1767560082577,0.01095794,91258.0,91253.0,0.06575087]
[1767560082915,0.06574811,91259.0,91254.0,0.01095842]
[1767560083054,0.06574811,91259.0,91254.0,0.0657504]
[1767560083434,0.01095782,91259.0,91254.0,0.0657504]
[1767560083612,0.06574697,91259.0,91254.0,0.06575052]
[1767560083956,0.06574779,91258.0,91253.0,0.06575087]
[1767560086864,0.06574779,91258.0,91253.0,0.01095854]
[1767560087076,0.06574779,91258.0,91253.0,0.0657511]
[1767560088011,0.06574779,91258.0,91253.0,0.01095854]
[1767560088218,0.01095818,91256.0,91250.0,0.02192]
[1767560088379,0.05479392,91251.0,91250.0,0.02192]
[1767560088558,0.05474896,91251.0,91250.0,0.02192]
[1767560088766,0.0109595,91245.0,91242.0,0.0001522]
[1767560088970,0.0109595,91245.0,91243.0,0.02192]
[1767560089304,0.06575643,91246.0,91243.0,0.020922]
[1767560089822,0.01095914,91248.0,91243.0,0.020922]
[1767560089990,0.06575606,91247.0,91243.0,0.020922]
[1767560091729,0.01095926,91247.0,91243.0,0.03188174]
[1767560092415,0.01095938,91246.0,91243.0,0.020922]
[1767560092769,0.0657558,91247.0,91243.0,0.020922]
[1767560093635,0.06575501,91248.0,91243.0,0.08668042]
[1767560094188,0.01095926,91247.0,91243.0,0.020922]
[1767560094362,0.06575602,91247.0,91243.0,0.020922]
[1767560098310,0.01095926,91247.0,91243.0,0.020922]
[1767560098488,0.01095926,91247.0,91243.0,0.03188174]
[1767560099337,0.06575501,91248.0,91243.0,0.03188174]
[1767560101075,0.06571005,91248.0,91243.0,0.03188174]
[1767560101873,0.0657543,91249.0,91244.0,0.01095962]
[1767560102114,0.01095914,91248.0,91244.0,0.01095962]
[1767560102335,0.0657543,91249.0,91244.0,0.01095962]
[1767560102821,0.06575457,91249.0,91244.0,0.01095962]
[1767560103021,0.06575457,91249.0,91244.0,0.06575753]
[1767560103248,0.01095902,91249.0,91245.0,0.0109595]
[1767560104135,0.06575419,91249.0,91244.0,0.06575753]
[1767560104350,0.06575419,91249.0,91243.0,0.08668023]
[1767560104351,0.01095902,91249.0,91240.0,0.07672052]
[1767560104493,0.01095902,91249.0,91244.0,0.06575731]
[1767560104695,0.01095902,91249.0,91245.0,0.0109595]
[1767560104935,0.06575389,91250.0,91244.0,0.06575731]
[1767560106320,0.01095902,91249.0,91244.0,0.06575731]
[1767560107631,0.06575389,91250.0,91244.0,0.06575731]
[1767560107632,0.06575389,91250.0,91245.0,0.0109595]
[1767560108036,0.01095914,91248.0,91243.0,0.06575743]
[1767560108912,0.01095902,91249.0,91244.0,0.01095962]
[1767560109368,0.01095902,91249.0,91244.0,0.06575733]
[1767560111925,0.06575425,91249.0,91244.0,0.01095962]
[1767560112130,0.06575425,91249.0,91244.0,0.06575758]
[1767560112731,0.01095902,91249.0,91244.0,0.06575758]
[1767560112934,0.01095902,91249.0,91245.0,0.0109595]
[1767560113669,0.01095902,91249.0,91244.0,0.06575758]
[1767560114048,0.06575347,91250.0,91245.0,0.0109595]
[1767560114224,0.01095902,91249.0,91244.0,0.06575758]
[1767560114418,0.06575416,91249.0,91244.0,0.01095962]
[1767560114941,0.06575347,91250.0,91245.0,0.0109595]
[1767560115572,0.06575416,91249.0,91244.0,0.06575744]
[1767560116139,0.01095902,91249.0,91245.0,0.0109595]
[1767560116678,0.06575347,91250.0,91245.0,0.065757]
[1767560116978,0.01095902,91249.0,91245.0,0.0109595]
[1767560117543,0.01095902,91249.0,91244.0,0.06575744]
[1767560118104,0.01095902,91249.0,91245.0,0.0109595]
[1767560118541,0.06575421,91249.0,91244.0,0.06575744]
[1767560118829,0.01095902,91249.0,91245.0,0.0109595]
[1767560119893,0.06575347,91250.0,91245.0,0.0109595]
[1767560120966,0.01095902,91249.0,91245.0,0.0109595]
[1767560121333,0.06575417,91249.0,91244.0,0.06575744]
[1767560121774,0.06575502,91248.0,91243.0,0.01095974]
[1767560121979,0.06575498,91248.0,91243.0,0.06575839]
[1767560122156,0.01095914,91248.0,91244.0,0.01095962]
[1767560122586,0.06575416,91249.0,91244.0,0.01095962]
[1767560123020,0.01095914,91248.0,91244.0,0.01095962]
[1767560123178,0.06575416,91249.0,91244.0,0.01095962]
[1767560123813,0.06575465,91249.0,91244.0,0.01095962]
[1767560124228,0.06575465,91249.0,91244.0,0.06575771]
[1767560124757,0.01095902,91249.0,91244.0,0.06575771]
[1767560124957,0.06575428,91249.0,91244.0,0.06575771]
[1767560125788,0.01095902,91249.0,91245.0,0.0109595]
[1767560127243,0.06575419,91249.0,91244.0,0.06575771]
[1767560127448,0.01095938,91246.0,91241.0,0.06575971]
[1767560127654,0.00996138,91246.0,91241.0,0.06575971]
[1767560127842,0.00986137,91246.0,91241.0,0.06575971]
[1767560128014,0.00986137,91246.0,91242.0,0.01095986]
[1767560128418,0.00986137,91246.0,91241.0,0.06575971]
[1767560128635,0.06465848,91246.0,91241.0,0.06575971]
[1767560128844,0.06465848,91246.0,91241.0,0.01095998]
[1767560129054,0.06575592,91247.0,91242.0,0.01095986]
[1767560129483,0.0109595,91245.0,91241.0,0.01095998]
[1767560129711,0.06575714,91245.0,91240.0,0.08768046]
[1767560131213,0.06175714,91245.0,91240.0,0.08768046]
[1767560131904,0.0109595,91245.0,91241.0,0.01095998]
[1767560132517,0.06575705,91245.0,91240.0,0.08768046]
[1767560133464,0.06575705,91245.0,91240.0,0.08768052]
[1767560134459,0.0109595,91245.0,91240.0,0.08768052]
[1767560134983,0.06575579,91247.0,91241.0,0.06575985]
[1767560135123,0.06575579,91247.0,91242.0,0.06575915]
[1767560135565,0.06575568,91247.0,91242.0,0.06575915]
[1767560135766,0.01095938,91246.0,91242.0,0.01095986]
[1767560135974,0.0109144,91246.0,91242.0,0.01095986]
[1767560137477,0.01095926,91247.0,91243.0,0.01095974]
[1767560137803,0.000999,91243.0,91240.0,0.02192]
[1767560137957,0.000999,91243.0,91240.0,0.0328801]
[1767560138161,0.06575822,91245.0,91240.0,0.0328801]
[1767560139088,0.05479872,91245.0,91240.0,0.0328801]
[1767560139266,0.0109595,91245.0,91240.0,0.08768042]
[1767560139620,0.06575721,91245.0,91240.0,0.08768042]
[1767560141160,0.01095962,91244.0,91240.0,0.0328801]
[1767560141342,0.06575721,91245.0,91240.0,0.0328801]
[1767560141930,0.0109595,91245.0,91241.0,0.01095998]
[1767560142301,0.06575639,91246.0,91241.0,0.06575952]
[1767560142774,0.0657566,91246.0,91241.0,0.06575952]
[1767560143135,0.06575713,91245.0,91240.0,0.08768059]
[1767560143553,0.0109595,91245.0,91241.0,0.01095998]
[1767560144094,0.06575714,91245.0,91240.0,0.08768059]
[1767560144513,0.0109595,91245.0,91240.0,0.08768059]
[1767560145348,0.0657566,91246.0,91241.0,0.04499962]
[1767560145559,0.06575714,91245.0,91240.0,0.08768059]
[1767560145974,0.0109595,91245.0,91241.0,0.01095998]
[1767560146181,0.0657566,91246.0,91241.0,0.01095998]
[1767560146815,0.0657566,91246.0,91241.0,0.06575979]
[1767560147325,0.01095938,91246.0,91240.0,0.0328801]
[1767560147534,0.0657573,91245.0,91240.0,0.0876365]
[1767560149137,0.01095962,91244.0,91240.0,0.02187592]
[1767560149340,0.065759,91243.0,91240.0,0.02187592]
[1767560149878,0.01095974,91243.0,91240.0,0.02187592]
[1767560150084,0.01095974,91243.0,91238.0,0.01096034]
[1767560150085,0.01096046,91237.0,91236.0,0.02192]
[1767560150226,0.11092743,91237.0,91236.0,0.02186794]
[1767560150580,0.01096046,91237.0,91236.0,0.02186794]
[1767560150755,0.01096034,91238.0,91236.0,0.02186794]
[1767560150981,0.06576248,91239.0,91236.0,0.02186794]
[1767560151183,0.0548,91241.0,91236.0,0.02186794]
[1767560151364,0.01095974,91243.0,91236.0,0.08763132]
[1767560151365,0.05480047,91242.0,91236.0,0.08763132]
[1767560151563,0.01095986,91242.0,91238.0,0.00059703]
[1767560151889,0.01095974,91243.0,91238.0,0.01155737]
[1767560152092,0.06575895,91243.0,91238.0,0.01155737]
[1767560152293,0.01095974,91243.0,91239.0,0.01096022]
[1767560154583,0.01095986,91242.0,91238.0,0.01096034]
[1767560154967,0.06575872,91243.0,91238.0,0.06576203]
[1767560157150,0.01095974,91243.0,91238.0,0.06576203]
[1767560157706,0.01095986,91242.0,91237.0,0.0657187]
[1767560158143,0.06575931,91242.0,91237.0,0.0109164]
[1767560158357,0.01095986,91242.0,91237.0,0.06571858]
[1767560158592,0.01095986,91242.0,91238.0,0.01096034]
[1767560158920,0.06575853,91243.0,91238.0,0.01096034]
[1767560159121,0.06575853,91243.0,91238.0,0.0076992]
[1767560159342,0.04675853,91243.0,91238.0,0.0076992]
[1767560160139,0.05771827,91243.0,91237.0,0.06571858]
[1767560160339,0.01095986,91242.0,91237.0,0.06571858]
[1767560162053,0.05771827,91243.0,91238.0,0.01096034]
[1767560163099,0.0657585,91243.0,91238.0,0.01096034]
[1767560163522,0.01095974,91243.0,91239.0,0.01096022]
[1767560163670,0.01095974,91243.0,91238.0,0.06576183]
[1767560163871,0.000999,91238.0,91235.0,0.0328807]
[1767560164129,0.000999,91238.0,91236.0,0.05480287]
[1767560164577,0.0109601,91240.0,91235.0,0.08768412]
[1767560164711,0.0109601,91240.0,91236.0,0.01096058]
[1767560165119,0.0109601,91240.0,91235.0,0.08768412]
[1767560165513,0.06576004,91241.0,91236.0,0.01096058]
[1767560165718,0.0109601,91240.0,91235.0,0.08768412]
[1767560165918,0.06576004,91241.0,91236.0,0.01096058]
[1767560167051,0.0109601,91240.0,91235.0,0.08768412]
[1767560167381,0.06176004,91241.0,91236.0,0.01096058]
[1767560168097,0.0109601,91240.0,91235.0,0.08768412]
[1767560168868,0.0109601,91240.0,91236.0,0.01096058]
[1767560169037,0.06176004,91241.0,91236.0,0.01096058]
[1767560170287,0.06176004,91241.0,91236.0,0.01102363]
[1767560171773,0.00695998,91241.0,91236.0,0.06582627]
[1767560172229,0.01095998,91241.0,91236.0,0.06582627]
[1767560172427,0.06575964,91242.0,91237.0,0.01096046]
[1767560172876,0.06575964,91242.0,91237.0,0.06576275]
[1767560173590,0.01095962,91244.0,91238.0,0.06576193]
[1767560173759,0.01095938,91246.0,91241.0,0.01095998]
[1767560173905,0.01095938,91246.0,91240.0,0.06575953]
[1767560173906,0.0657567,91246.0,91240.0,0.06575953]
[1767560174108,0.0109595,91245.0,91240.0,0.06575953]
[1767560174319,0.0657567,91246.0,91241.0,0.01095998]
[1767560174557,0.0657567,91246.0,91241.0,0.06575975]
[1767560174750,0.06371507,91247.0,91242.0,0.01095986]
[1767560174965,0.01095938,91246.0,91242.0,0.0108699]
[1767560175179,0.01095938,91246.0,91241.0,0.06575975]
[1767560175361,0.01095938,91246.0,91242.0,0.01095986]
[1767560175589,0.06371507,91247.0,91242.0,0.01095986]
[1767560175721,0.01095938,91246.0,91241.0,0.06575975]
[1767560175928,0.01095938,91246.0,91242.0,0.01095986]
[1767560176365,0.000999,91242.0,91241.0,0.06575975]
[1767560176746,0.06371507,91247.0,91242.0,0.01095986]
[1767560178602,0.01095938,91246.0,91241.0,0.06575975]
[1767560178804,0.06575652,91246.0,91241.0,0.01095998]
[1767560180203,0.01095938,91246.0,91241.0,0.06575987]
[1767560180785,0.0109595,91245.0,91241.0,0.01095998]
[1767560181001,0.0109595,91245.0,91240.0,0.06575953]
[1767560181002,0.06575713,91245.0,91240.0,0.0109601]
[1767560181207,0.06575713,91245.0,91239.0,0.06576133]
[1767560181208,0.01095962,91244.0,91239.0,0.06576133]
[1767560186251,0.01095962,91244.0,91240.0,0.0109601]
[1767560186427,0.0109595,91245.0,91240.0,0.06576062]
[1767560186626,0.01089069,91245.0,91240.0,0.06576062]
[1767560186949,0.06575643,91246.0,91241.0,0.01095998]
[1767560187163,0.0109595,91245.0,91240.0,0.06576062]
[1767560187377,0.01095962,91244.0,91239.0,0.01096022]
[1767560187546,0.06575779,91244.0,91238.0,0.06576188]
[1767560187740,0.06575821,91244.0,91239.0,0.01096022]
[1767560187944,0.06575821,91244.0,91238.0,0.06576188]
[1767560187945,0.000999,91239.0,91238.0,0.06576188]
[1767560188373,0.06575821,91244.0,91239.0,0.0657613]
[1767560188569,0.01095962,91244.0,91240.0,0.0109601]
[1767560188823,0.01095962,91244.0,91239.0,0.0657613]
[1767560188993,0.01095974,91243.0,91238.0,0.06576188]
[1767560189178,0.01095986,91242.0,91237.0,0.06576276]
[1767560189378,0.06575891,91243.0,91238.0,0.01096034]
[1767560189567,0.06575933,91242.0,91237.0,0.06576276]
[1767560189769,0.06575891,91243.0,91238.0,0.0657619]
[1767560190006,0.01095986,91242.0,91238.0,0.01096034]
[1767560190205,0.06575891,91243.0,91238.0,0.01096034]
[1767560190407,0.06575891,91243.0,91238.0,0.06576191]
[1767560190721,0.06575891,91243.0,91238.0,0.06567194]
[1767560191623,0.04928768,91244.0,91241.0,0.01095998]
[1767560191827,0.04928768,91244.0,91240.0,0.06576029]
[1767560192061,0.0602473,91244.0,91239.0,0.06576028]
[1767560192186,0.0602473,91244.0,91240.0,0.0109601]
[1767560192375,0.0602473,91244.0,91239.0,0.06576028]
[1767560192598,0.11504544,91244.0,91239.0,0.06576028]
[1767560192797,0.0602473,91244.0,91236.0,0.17489845]
[1767560193992,0.01095962,91244.0,91236.0,0.17489845]
[1767560194197,0.06575708,91245.0,91240.0,0.0109601]
[1767560194612,0.06575708,91245.0,91239.0,0.0657609]
[1767560194994,0.0109595,91245.0,91241.0,0.01095998]
[1767560197460,0.0109595,91245.0,91240.0,0.06576033]
[1767560197663,0.01095962,91244.0,91239.0,0.01096022]
[1767560197798,0.000999,91240.0,91239.0,0.01096022]
[1767560198002,0.01095962,91244.0,91240.0,0.0109601]
[1767560198617,0.06575723,91245.0,91240.0,0.0109601]
[1767560199176,0.06575723,91245.0,91240.0,0.06576059]
[1767560199361,0.000999,91240.0,91239.0,0.06576134]
[1767560199540,0.01095962,91244.0,91239.0,0.06576134]
[1767560199718,0.01095962,91244.0,91239.0,0.06571729]
[1767560199922,0.01095974,91243.0,91238.0,0.06576202]
[1767560200109,0.01095974,91243.0,91239.0,0.01096022]
[1767560200312,0.06575821,91244.0,91239.0,0.06576125]
[1767560200758,0.01095962,91244.0,91240.0,0.0109601]
[1767560200921,0.0109595,91245.0,91241.0,0.05479992]
[1767560201117,0.0109595,91245.0,91241.0,0.05379638]
[1767560201473,0.06575737,91246.0,91241.0,0.06475636]
[1767560201682,0.01095938,91246.0,91241.0,0.06475636]
[1767560202092,0.01095938,91246.0,91242.0,0.01095986]
[1767560202484,0.01095938,91246.0,91241.0,0.06475636]
[1767560203071,0.06575652,91246.0,91241.0,0.01095998]
[1767560204242,0.06575652,91246.0,91241.0,0.01087001]
[1767560205823,0.06575652,91246.0,91241.0,0.0656698]
[1767560210485,0.0109595,91245.0,91240.0,0.06576017]
[1767560210693,0.06575652,91246.0,91241.0,0.01095998]
[1767560210873,0.0109595,91245.0,91241.0,0.01095998]
[1767560213063,0.06575652,91246.0,91241.0,0.01095998]
[1767560213307,0.0109595,91245.0,91241.0,0.01095998]
[1767560214539,0.0109595,91245.0,91240.0,0.06576017]
[1767560214862,0.06575716,91245.0,91240.0,0.06576017]
[1767560215061,0.06575704,91245.0,91240.0,0.06576017]
[1767560215286,0.0109595,91245.0,91241.0,0.01095998]
[1767560215980,0.0109595,91245.0,91240.0,0.06576017]
[1767560217268,0.06575706,91245.0,91240.0,0.06576017]
[1767560218179,0.23014421,91248.0,91245.0,6.9e-05]
[1767560218180,0.01095926,91247.0,91245.0,6.9e-05]
[1767560218382,0.06575569,91247.0,91242.0,0.01095986]
[1767560218699,0.01095926,91247.0,91243.0,0.01095974]
[1767560219405,0.06575569,91247.0,91242.0,0.06575901]
[1767560219567,0.01095926,91247.0,91242.0,0.06575901]
[1767560220067,0.01095914,91248.0,91243.0,0.06575829]
[1767560220890,0.01095926,91247.0,91242.0,0.06575901]
[1767560221089,0.01095938,91246.0,91242.0,0.01095986]
[1767560221935,0.0657557,91247.0,91242.0,0.01095986]
[1767560222279,0.01095926,91247.0,91243.0,0.01095974]
[1767560222898,0.01095926,91247.0,91242.0,0.06575902]
[1767560224115,0.01095938,91246.0,91241.0,0.06575988]
[1767560224320,0.01095938,91246.0,91242.0,0.01095986]
[1767560224518,0.000999,91242.0,91237.0,0.01096046]
[1767560224718,0.000999,91242.0,91238.0,0.01096034]
[1767560224919,0.05479937,91242.0,91235.0,0.0328807]
[1767560225121,0.01095998,91241.0,91236.0,0.01096058]
[1767560225770,0.06576023,91241.0,91236.0,0.00996158]
[1767560226055,0.01095998,91241.0,91236.0,0.01096058]
[1767560226257,0.0109601,91240.0,91236.0,0.01096058]
[1767560226488,0.06576044,91241.0,91235.0,0.08768417]
[1767560226679,0.01095998,91241.0,91237.0,0.01096046]
[1767560226888,0.01095986,91242.0,91237.0,0.01096046]
[1767560227046,0.01095986,91242.0,91238.0,0.01096034]
[1767560227467,0.06576002,91241.0,91236.0,0.01096058]
[1767560227645,0.01095998,91241.0,91236.0,0.06576337]
[1767560227842,0.01095998,91241.0,91237.0,0.01096046]
[1767560228034,0.06575954,91242.0,91237.0,0.01096046]
[1767560228607,0.01095998,91241.0,91236.0,0.06576337]
[1767560228726,0.01096034,91238.0,91235.0,0.02192]
[1767560228934,0.05480164,91240.0,91235.0,0.0328807]
[1767560229130,0.01095998,91241.0,91236.0,0.06576343]
[1767560229416,0.01095998,91241.0,91236.0,0.01096058]
[1767560229567,0.0657595,91242.0,91237.0,0.01096046]
[1767560232964,0.01095998,91241.0,91237.0,0.01096046]
[1767560233627,0.0657595,91242.0,91237.0,0.01096046]
[1767560234069,0.01095974,91243.0,91238.0,0.06576206]
[1767560234447,0.01095974,91243.0,91238.0,0.0656721]
[1767560235217,0.06575864,91243.0,91238.0,0.01096034]
[1767560235700,0.06575828,91244.0,91239.0,0.01096022]
[1767560235904,0.01095974,91243.0,91238.0,0.06576151]
[1767560236112,0.01095974,91243.0,91239.0,0.01096022]
[1767560236619,0.01095974,91243.0,91239.0,0.01091618]
[1767560236780,0.06575828,91244.0,91239.0,0.01091618]
[1767560237154,0.01095974,91243.0,91239.0,0.01096022]
[1767560238469,0.05479955,91242.0,91236.0,0.01096058]
[1767560238677,0.06575941,91242.0,91237.0,0.06576277]
[1767560238881,0.01095974,91243.0,91238.0,0.0109163]
[1767560239092,0.01095974,91243.0,91238.0,0.0657178]
[1767560239802,0.01095974,91243.0,91239.0,0.01096022]
[1767560240313,0.06575849,91243.0,91238.0,0.0657178]
[1767560240704,0.01095974,91243.0,91238.0,0.0657178]
[1767560240913,0.01095974,91243.0,91238.0,0.06567376]
[1767560242104,0.01095986,91242.0,91238.0,0.01087226]
[1767560242312,0.06575861,91243.0,91238.0,0.01087226]
[1767560243150,0.06575861,91243.0,91238.0,0.06567388]
[1767560243529,0.06575919,91242.0,91236.0,0.0657635]
[1767560243697,0.06575919,91242.0,91237.0,0.06576266]
[1767560243921,0.06575861,91243.0,91238.0,0.01096034]
[1767560244762,0.01095986,91242.0,91238.0,0.01096034]
[1767560245707,0.06575861,91243.0,91238.0,0.01096034]
[1767560247805,0.06575861,91243.0,91238.0,0.01091536]
[1767560248304,0.01095938,91246.0,91243.0,0.000999]
[1767560248483,0.01095926,91247.0,91242.0,0.06575914]
[1767560248654,0.06575486,91248.0,91243.0,0.01095974]
[1767560248856,0.06575486,91248.0,91242.0,0.06575914]
[1767560249214,0.01095926,91247.0,91243.0,0.01095974]
[1767560249357,0.06575486,91248.0,91247.0,0.000999]
[1767560249561,0.06575486,91248.0,91241.0,0.06575888]
[1767560249562,0.01095938,91246.0,91241.0,0.06575888]
[1767560250184,0.01095938,91246.0,91242.0,0.01095986]
[1767560250388,0.06575594,91247.0,91242.0,0.01095986]
[1767560251725,0.01095938,91246.0,91242.0,0.01095986]
[1767560251930,0.0657556,91247.0,91246.0,0.000955]
[1767560252269,0.0657556,91247.0,91242.0,0.01095986]
[1767560253484,0.0477556,91247.0,91242.0,0.01095986]
[1767560254271,0.05871486,91247.0,91242.0,0.01095986]
[1767560256018,0.05871486,91247.0,91242.0,0.06575897]
[1767560256292,0.01095926,91247.0,91243.0,0.01095974]
[1767560257336,0.01095926,91247.0,91242.0,0.06575897]
[1767560257612,0.01095926,91247.0,91243.0,0.01095974]
[1767560259331,0.01095926,91247.0,91242.0,0.06575897]
[1767560259744,0.01095926,91247.0,91242.0,0.06571399]
[1767560260987,0.06575658,91246.0,91240.0,0.06576059]
[1767560261190,4.4e-05,91242.0,91241.0,0.01095998]
[1767560261400,0.0109595,91245.0,91241.0,0.01095998]
[1767560262320,4.4e-05,91241.0,91239.0,0.06576128]
[1767560262505,0.06575783,91244.0,91239.0,0.06576128]
[1767560262849,0.06575783,91244.0,91236.0,0.05480292]
[1767560263054,0.06575783,91244.0,91238.0,0.05480127]
[1767560263292,0.06575854,91243.0,91238.0,0.06576161]
[1767560263490,0.01095974,91243.0,91238.0,0.06576161]
[1767560263695,0.06575869,91243.0,91238.0,0.01096034]
[1767560264100,0.01095986,91242.0,91237.0,0.06576263]
[1767560264369,0.06575921,91242.0,91237.0,0.00769633]
[1767560264749,0.06575921,91242.0,91237.0,0.06249859]
[1767560264960,0.01095986,91242.0,91237.0,0.06249859]
[1767560265291,0.01095998,91241.0,91236.0,0.02192]
[1767560265440,0.06575997,91241.0,91236.0,0.03288058]
[1767560265642,0.01095998,91241.0,91236.0,0.08768332]
[1767560266490,0.0657593,91242.0,91237.0,0.01096046]
[1767560268205,0.0657593,91242.0,91237.0,0.01091643]
[1767560269170,0.01095986,91242.0,91238.0,0.01096034]
[1767560269383,0.01095986,91242.0,91237.0,0.01091643]
[1767560269601,0.01095986,91242.0,91236.0,0.08768332]
[1767560269806,0.01095998,91241.0,91236.0,0.08768332]
[1767560270000,0.01095986,91242.0,91237.0,0.06576263]
[1767560270181,0.01095998,91241.0,91236.0,0.08768332]
[1767560271144,0.06575937,91242.0,91237.0,0.01096046]
[1767560272156,0.06575937,91242.0,91236.0,0.08768332]
[1767560272293,0.06575937,91242.0,91237.0,0.01096046]
[1767560274466,0.01095998,91241.0,91236.0,0.08768332]
[1767560274885,0.06576003,91241.0,91236.0,0.03288058]
[1767560275246,0.01095998,91241.0,91236.0,0.08768334]
[1767560275463,0.06575999,91241.0,91236.0,0.08768334]
[1767560275887,0.06575937,91242.0,91237.0,0.06576277]
[1767560276949,0.06575937,91242.0,91237.0,0.01096046]
[1767560279365,0.06576,91241.0,91236.0,0.03288058]